bitfinex/quotes_BTCUSD_20241014
["timestamp","ask_amount","ask_price","bid_price","bid_amount"]
[1728871895313,0.00114548,62687.0,62686.0,0.4045275]
[1728871895522,0.00164,62691.0,62690.0,0.44356234]
[1728871895736,0.00164,62691.0,62690.0,0.87495665]
[1728871895945,0.00164,62691.0,62690.0,0.88579184]
[1728871896423,0.00164,62691.0,62690.0,0.88779184]
[1728871896633,0.00164,62691.0,62690.0,0.86187644]
[1728871897073,0.00164,62691.0,62690.0,0.79016652]
[1728871897290,0.00164,62691.0,62690.0,0.79616652]
[1728871897751,0.00164,62691.0,62690.0,0.89179184]
[1728871897967,0.00164,62691.0,62690.0,0.80016652]
[1728871898415,0.00164,62691.0,62690.0,0.98585777]
[1728871898623,0.00164,62691.0,62690.0,0.90416652]
[1728871898839,0.00164,62691.0,62690.0,0.91504708]
[1728871899500,0.00164,62691.0,62690.0,0.81030375]
[1728871899720,0.00164,62691.0,62690.0,0.98671085]
[1728871899950,0.00164,62691.0,62690.0,0.81030375]
[1728871900383,0.00164,62691.0,62690.0,0.66112154]
[1728871900840,0.00164,62691.0,62690.0,0.70890637]
[1728871901051,0.00164,62691.0,62690.0,0.72480553]
[1728871901285,0.00164,62691.0,62690.0,0.72480381]
[1728871904338,0.00164,62691.0,62690.0,0.6770207]
[1728871906506,0.00164,62691.0,62690.0,0.6660207]
[1728871906716,0.00164,62691.0,62690.0,0.69980381]
[1728871907160,0.00164,62691.0,62690.0,0.71280381]
[1728871907376,0.00164,62691.0,62690.0,0.6570207]
[1728871907796,0.00164,62691.0,62690.0,0.69980381]
[1728871908006,0.00164,62691.0,62690.0,0.70480381]
[1728871908233,0.00164,62691.0,62690.0,0.6650207]
[1728871908874,0.00164,62691.0,62690.0,0.71280381]
[1728871909580,0.00164,62691.0,62690.0,0.6650207]
[1728871910633,0.00144746,62691.0,62690.0,0.6650207]
[1728871913930,0.00144746,62691.0,62690.0,0.61039812]
[1728871920427,0.00144746,62691.0,62690.0,0.44417411]
[1728871920639,0.0959402,62691.0,62690.0,0.44417411]
[1728871920859,0.0959402,62691.0,62690.0,0.42827495]
[1728871921303,0.11977046,62691.0,62690.0,0.42808245]
[1728871921724,0.08104746,62691.0,62690.0,0.42808245]
[1728871921942,0.1197716,62691.0,62690.0,0.42808245]
[1728871922374,0.09594136,62691.0,62690.0,0.42808245]
[1728871922888,0.11976786,62691.0,62690.0,0.42808245]
[1728871923113,0.21566786,62691.0,62690.0,0.05584519]
[1728871923330,0.37517986,62691.0,62690.0,0.05584519]
[1728871923537,0.37517986,62691.0,62690.0,0.02383519]
[1728871923748,0.21566786,62691.0,62690.0,0.013]
[1728871923975,0.21566786,62691.0,62690.0,0.00902367]
[1728871924179,0.21965599,62691.0,62690.0,0.00902367]
[1728871924402,0.21965599,62691.0,62690.0,0.01202367]
[1728871924625,0.21965599,62691.0,62690.0,0.00902367]
[1728871924847,0.21766786,62691.0,62690.0,0.16853867]
[1728871925501,0.21766786,62691.0,62690.0,0.16953867]
[1728871925920,0.21766786,62691.0,62690.0,0.16853867]
[1728871926125,0.21766786,62691.0,62690.0,0.16953867]
[1728871926767,0.21766786,62691.0,62690.0,0.16853867]
[1728871926973,0.21566786,62691.0,62690.0,0.16853867]
[1728871927187,0.21866786,62691.0,62690.0,0.16853867]
[1728871927635,0.21566786,62691.0,62690.0,0.16853867]
[1728871927860,0.21666786,62691.0,62690.0,0.33595417]
[1728871928068,0.21566786,62691.0,62690.0,0.33595417]
[1728871928498,0.13906786,62691.0,62690.0,0.33595417]
[1728871928702,0.13606786,62691.0,62690.0,0.33595417]
[1728871929180,0.13596939,62691.0,62690.0,0.33595417]
[1728871929599,0.13596708,62691.0,62690.0,0.33595417]
[1728871930519,0.04006708,62691.0,62690.0,0.33595417]
[1728871930733,0.04306708,62691.0,62690.0,0.33595417]
[1728871930954,0.04006708,62691.0,62690.0,0.33595417]
[1728871931386,0.04306708,62691.0,62690.0,0.33595417]
[1728871931891,0.01930116,62691.0,62690.0,0.33595417]
[1728871932543,0.01930116,62691.0,62690.0,0.33677317]
[1728871934485,0.01630116,62691.0,62690.0,0.33677317]
[1728871935145,0.01630116,62691.0,62690.0,0.36878317]
[1728871937186,0.01630116,62691.0,62690.0,0.37078317]
[1728871940117,0.09920116,62691.0,62690.0,0.20336767]
[1728871940359,0.12297131,62691.0,62690.0,0.20336767]
[1728871940581,0.04007863,62691.0,62690.0,0.20336767]
[1728871941211,0.00144746,62691.0,62690.0,0.20336767]
[1728871941428,0.04007814,62691.0,62690.0,0.20336767]
[1728871943400,0.04007814,62691.0,62690.0,0.20136767]
[1728871943609,0.04107814,62691.0,62690.0,0.20136767]
[1728871946008,0.04107814,62691.0,62690.0,0.16935767]
[1728871946221,0.13127814,62691.0,62690.0,0.00984267]
[1728871946431,0.36699014,62691.0,62690.0,0.00984267]
[1728871946700,0.36699014,62691.0,62690.0,0.000819]
[1728871946701,0.52821415,62691.0,62690.0,0.000819]
[1728871946919,0.55320428,62691.0,62690.0,0.000819]
[1728871947783,0.55320428,62691.0,62690.0,0.001819]
[1728871947994,0.55220428,62691.0,62690.0,0.001819]
[1728871948256,0.5135736,62691.0,62690.0,0.000819]
[1728871948469,0.55521195,62691.0,62690.0,0.001819]
[1728871948679,0.55521195,62691.0,62690.0,0.002819]
[1728871950935,0.23447594,62691.0,62690.0,0.002819]
[1728871951196,0.23846425,62691.0,62690.0,0.002819]
[1728871951415,0.39797625,62691.0,62690.0,0.01168485]
[1728871951639,0.39098794,62691.0,62690.0,0.000819]
[1728871951862,0.23147594,62691.0,62690.0,0.000819]
[1728871952092,0.39497026,62691.0,62690.0,0.00968485]
[1728871952340,0.39098204,62691.0,62690.0,0.000819]
[1728871952551,0.39998204,62691.0,62690.0,0.01168485]
[1728871952764,0.37499191,62691.0,62690.0,0.002819]
[1728871952979,0.37499191,62691.0,62690.0,0.01168485]
[1728871953194,0.37499191,62691.0,62690.0,0.002819]
[1728871953665,0.37099191,62691.0,62690.0,0.01068485]
[1728871953876,0.36599191,62691.0,62690.0,0.00968485]
[1728871954120,0.37199191,62691.0,62690.0,0.01168485]
[1728871955831,0.21247991,62691.0,62690.0,0.01168485]
[1728871956039,0.2164682,62691.0,62690.0,0.01168485]
[1728871956257,0.3759802,62691.0,62690.0,0.01168485]
[1728871956490,0.37199191,62691.0,62690.0,0.01168485]
[1728871956696,0.37199191,62691.0,62690.0,0.002819]
[1728871959723,0.53321592,62691.0,62690.0,0.002819]
[1728871959948,0.53521592,62691.0,62690.0,0.002819]
[1728871960169,0.53321592,62691.0,62690.0,0.002819]
[1728871960602,0.53521592,62691.0,62690.0,0.002819]
[1728871960813,0.53321592,62691.0,62690.0,0.001819]
[1728871961097,0.53521592,62691.0,62690.0,0.002819]
[1728871961304,0.52921592,62691.0,62690.0,0.001819]
[1728871961520,0.53121592,62691.0,62690.0,0.001819]
[1728871961952,0.52721592,62691.0,62690.0,0.000819]
[1728871962843,0.53721592,62691.0,62690.0,0.001819]
[1728871963302,0.54119446,62691.0,62690.0,0.001819]
[1728871963513,0.52719446,62691.0,62690.0,0.000819]
[1728871963717,0.54119446,62691.0,62690.0,0.001819]
[1728871963928,0.55519446,62691.0,62690.0,0.002819]
[1728871964161,0.55519446,62691.0,62690.0,0.001819]
[1728871964356,0.54119446,62691.0,62690.0,0.001819]
[1728871964579,0.55519446,62691.0,62690.0,0.001819]
[1728871964795,0.57119446,62691.0,62690.0,0.002819]
[1728871965212,0.56919446,62691.0,62690.0,0.002819]
[1728871965651,0.59418713,62691.0,62690.0,0.002819]
[1728871965869,0.59418713,62691.0,62690.0,0.001819]
[1728871966097,0.58018713,62691.0,62690.0,0.001819]
[1728871966312,0.59218713,62691.0,62690.0,0.002819]
[1728871966561,0.59018713,62691.0,62690.0,0.002819]
[1728871966769,0.56618713,62691.0,62690.0,0.001819]
[1728871966985,0.55218713,62691.0,62690.0,0.000819]
[1728871967196,0.57218713,62691.0,62690.0,0.002819]
[1728871967445,0.56218713,62691.0,62690.0,0.001819]
[1728871967906,0.57218713,62691.0,62690.0,0.002819]
[1728871969748,0.25145112,62691.0,62690.0,0.002819]
[1728871969966,0.08903952,62691.0,62690.0,0.002819]
[1728871970181,0.08505112,62691.0,62690.0,0.002819]
[1728871970449,0.08505112,62691.0,62690.0,0.17121662]
[1728871970656,0.07505112,62691.0,62690.0,0.1615265]
[1728871970872,0.07505112,62691.0,62690.0,0.17040912]
[1728871971337,0.07505112,62691.0,62690.0,0.16940912]
[1728871971780,0.08405112,62691.0,62690.0,0.17040912]
[1728871972667,0.06805845,62691.0,62690.0,0.17140912]
[1728871973114,0.05905845,62691.0,62690.0,0.17040912]
[1728871973325,0.04405845,62691.0,62690.0,0.16940912]
[1728871973748,0.04505845,62691.0,62690.0,0.16940912]
[1728871974006,0.04005845,62691.0,62690.0,0.16940912]
[1728871974240,0.04205845,62691.0,62690.0,0.16940912]
[1728871974456,0.04205845,62691.0,62690.0,0.17040912]
[1728871974676,0.04209459,62691.0,62690.0,0.17040912]
[1728871978425,0.04208714,62691.0,62690.0,0.17040912]
[1728871978644,0.01830887,62691.0,62690.0,0.17040912]
[1728871978869,0.04208714,62691.0,62690.0,0.17040912]
[1728871979849,0.01630887,62691.0,62690.0,0.17040912]
[1728871980103,0.04008714,62691.0,62690.0,0.16940912]
[1728871980337,0.04308714,62691.0,62690.0,0.16940912]
[1728871980576,0.04108714,62691.0,62690.0,0.16940912]
[1728871980777,0.01630887,62691.0,62690.0,0.16940912]
[1728871981044,0.04108714,62691.0,62690.0,0.16940912]
[1728871981272,0.04108247,62691.0,62690.0,0.16940912]
[1728871982002,0.01730708,62691.0,62690.0,0.16940912]
[1728871982201,0.02030708,62691.0,62690.0,0.16940912]
[1728871982433,0.00544746,62691.0,62690.0,0.16940912]
[1728871982666,0.0173031,62691.0,62690.0,0.16940912]
[1728871982920,0.02030299,62691.0,62690.0,0.16940912]
[1728871983423,0.02230299,62691.0,62690.0,0.00989412]
[1728871984170,0.02230299,62691.0,62690.0,0.16940912]
[1728871984396,0.02230299,62691.0,62690.0,0.0010115]
[1728871984628,0.02230299,62691.0,62690.0,0.00985626]
[1728871984875,0.02230299,62691.0,62690.0,0.1605265]
[1728871985114,0.02230299,62691.0,62690.0,0.00985626]
[1728871985343,0.02230299,62691.0,62690.0,0.16937126]
[1728871987302,0.04607155,62691.0,62690.0,0.16937126]
[1728871988205,0.04607155,62691.0,62690.0,0.00985626]
[1728871988434,0.04606768,62691.0,62690.0,0.00985626]
[1728871988688,0.02230139,62691.0,62690.0,0.00985626]
[1728871988938,0.39166795,62691.0,62690.0,0.00966376]
[1728871989171,0.38767968,62691.0,62690.0,0.000819]
[1728871991286,0.54890369,62691.0,62690.0,0.000819]
[1728871992029,0.53405042,62691.0,62690.0,0.000819]
[1728871992290,0.54490476,62691.0,62690.0,0.000819]
[1728871992511,0.55690476,62691.0,62690.0,0.001819]
[1728871992970,0.54290476,62691.0,62690.0,0.000819]
[1728871993188,0.55190476,62691.0,62690.0,0.001819]
[1728871993419,0.54290476,62691.0,62690.0,0.000819]
[1728871993895,0.56590476,62691.0,62690.0,0.002819]
[1728871994126,0.55690476,62691.0,62690.0,0.001819]
[1728871994372,0.56590476,62691.0,62690.0,0.002819]
[1728871995012,0.55190476,62691.0,62690.0,0.001819]
[1728871995484,0.56590476,62691.0,62690.0,0.002819]
[1728871995727,0.59089664,62691.0,62690.0,0.002819]
[1728872002571,0.56590476,62691.0,62690.0,0.002819]
[1728872003018,0.55190476,62691.0,62690.0,0.001819]
[1728872003241,0.55690476,62691.0,62690.0,0.001819]
[1728872004180,0.55690476,62691.0,62690.0,0.002819]
[1728872004181,0.56790476,62691.0,62690.0,0.002819]
[1728872004409,0.55390476,62691.0,62690.0,0.001819]
[1728872005563,0.59189663,62691.0,62690.0,0.002819]
[1728872006743,0.59189788,62691.0,62690.0,0.002819]
[1728872007217,0.59189805,62691.0,62690.0,0.002819]
[1728872012389,0.24857404,62691.0,62690.0,0.002819]
[1728872012620,0.22757045,62691.0,62690.0,0.002819]
[1728872013103,0.06805845,62691.0,62690.0,0.002819]
[1728872013331,0.06407017,62691.0,62690.0,0.002819]
[1728872013801,0.22358217,62691.0,62690.0,0.01170911]
[1728872014046,0.22358217,62691.0,62690.0,0.002819]
[1728872014262,0.22361135,62691.0,62690.0,0.01170911]
[1728872014508,0.22361135,62691.0,62690.0,0.002819]
[1728872014734,0.22361135,62691.0,62690.0,0.01170911]
[1728872015001,0.22361135,62691.0,62690.0,0.002819]
[1728872015693,0.24860199,62691.0,62690.0,0.002819]
[1728872018246,0.24862378,62691.0,62690.0,0.002819]
[1728872021632,0.40984779,62691.0,62690.0,0.002819]
[1728872021849,0.37117411,62691.0,62690.0,0.002819]
[1728872022078,0.40984578,62691.0,62690.0,0.002819]
[1728872022519,0.38485514,62691.0,62690.0,0.002819]
[1728872025574,0.409846,62691.0,62690.0,0.002819]
[1728872029774,0.40984116,62691.0,62690.0,0.002819]
[1728872032121,0.24861715,62691.0,62690.0,0.002819]
[1728872032359,0.24861715,62691.0,62690.0,0.245134]
[1728872032360,0.08910515,62691.0,62690.0,0.245134]
[1728872032581,0.06411429,62691.0,62690.0,0.25401478]
[1728872033255,0.06411429,62691.0,62690.0,0.25301478]
[1728872033256,0.06411573,62691.0,62690.0,0.25301478]
[1728872033470,0.05311573,62691.0,62690.0,0.25301478]
[1728872033713,0.04311573,62691.0,62690.0,0.25201478]
[1728872033942,0.05611573,62691.0,62690.0,0.25301478]
[1728872034587,0.04311573,62691.0,62690.0,0.25201478]
[1728872034814,0.04811573,62691.0,62690.0,0.25201478]
[1728872035755,0.04811573,62691.0,62690.0,0.25220728]
[1728872036603,0.04811573,62691.0,62690.0,0.34230728]
[1728872036811,0.04311573,62691.0,62690.0,0.34230728]
[1728872037026,0.04611349,62691.0,62690.0,0.34230728]
[1728872037665,0.04311349,62691.0,62690.0,0.34230728]
[1728872038087,0.04211349,62691.0,62690.0,0.34230728]
[1728872038532,0.04011349,62691.0,62690.0,0.34230728]
[1728872039191,0.04011349,62691.0,62690.0,0.34430728]
[1728872039415,0.01631901,62691.0,62690.0,0.34430728]
[1728872039884,0.04010453,62691.0,62690.0,0.34430728]
[1728872040784,0.0401007,62691.0,62690.0,0.34430728]
[1728872041037,0.00144746,62691.0,62690.0,0.34430728]
[1728872041290,0.04010062,62691.0,62690.0,0.34430728]
[1728872044348,0.01631406,62691.0,62690.0,0.34430728]
[1728872044600,0.04010062,62691.0,62690.0,0.34430728]
[1728872044812,0.01631406,62691.0,62690.0,0.34430728]
[1728872045022,0.04010062,62691.0,62690.0,0.34430728]
[1728872045935,0.04010062,62691.0,62690.0,0.34230728]
[1728872046139,0.04110062,62691.0,62690.0,0.34230728]
[1728872047014,0.0440838,62691.0,62690.0,0.34230728]
[1728872047451,0.0410838,62691.0,62690.0,0.25220728]
[1728872047672,0.0440838,62691.0,62690.0,0.25220728]
[1728872047889,0.0430838,62691.0,62690.0,0.00989228]
[1728872048325,0.0440838,62691.0,62690.0,0.00989228]
[1728872048543,0.0430838,62691.0,62690.0,0.00989228]
[1728872048755,0.20658364,62691.0,62690.0,0.00989228]
[1728872048967,0.04707164,62691.0,62690.0,0.00989228]
[1728872049176,0.06906079,62691.0,62690.0,0.00989228]
[1728872049604,0.07006079,62691.0,62690.0,0.00989228]
[1728872049825,0.23157279,62691.0,62690.0,0.00989228]
[1728872050248,0.22957279,62691.0,62690.0,0.00989228]
[1728872050462,0.23257279,62691.0,62690.0,0.00989228]
[1728872051159,0.23256821,62691.0,62690.0,0.00989228]
[1728872051575,0.23256821,62691.0,62690.0,0.0010115]
[1728872052005,0.23256821,62691.0,62690.0,0.00986026]
[1728872052218,0.23256821,62691.0,62690.0,0.0010115]
[1728872052463,0.23256821,62691.0,62690.0,0.00986026]
[1728872052674,0.20757906,62691.0,62690.0,0.0010115]
[1728872052890,0.20757906,62691.0,62690.0,0.00986026]
[1728872053099,0.20757906,62691.0,62690.0,0.0010115]
[1728872053336,0.20757906,62691.0,62690.0,0.00986026]
[1728872053551,0.04806706,62691.0,62690.0,0.0010115]
[1728872053769,0.04806706,62691.0,62690.0,0.00986026]
[1728872054399,0.0094353,62691.0,62690.0,0.00986026]
[1728872054644,0.04807483,62691.0,62690.0,0.00986026]
[1728872055709,0.07306399,62691.0,62690.0,0.00986026]
[1728872057948,0.07306388,62691.0,62690.0,0.00986026]
[1728872058157,0.0730641,62691.0,62690.0,0.00986026]
[1728872059833,0.3137761,62691.0,62690.0,0.00986026]
[1728872060059,0.1542641,62691.0,62690.0,0.00966776]
[1728872060278,0.1542641,62691.0,62690.0,0.000819]
[1728872061140,0.1542641,62691.0,62690.0,0.0010115]
[1728872061612,0.1542641,62691.0,62690.0,0.00986831]
[1728872061836,0.0730641,62691.0,62690.0,0.00986831]
[1728872062693,0.04807494,62691.0,62690.0,0.00986831]
[1728872064224,0.04807494,62691.0,62690.0,0.16938331]
[1728872064462,0.04807494,62691.0,62690.0,0.28218479]
[1728872064463,0.0440871,62691.0,62690.0,0.28218479]
[1728872064675,0.0440871,62691.0,62690.0,0.31417479]
[1728872065779,0.0400871,62691.0,62690.0,0.31417479]
[1728872065996,0.0430871,62691.0,62690.0,0.31417479]
[1728872066233,0.0430871,62691.0,62690.0,0.31717479]
[1728872066444,0.0430871,62691.0,62690.0,0.31417479]
[1728872066747,0.0400871,62691.0,62690.0,0.31417479]
[1728872066931,0.0400871,62691.0,62690.0,0.31717479]
[1728872067805,0.0400871,62691.0,62690.0,0.32217479]
[1728872069097,0.00144746,62691.0,62690.0,0.32217479]
[1728872069320,0.04010517,62691.0,62690.0,0.32217479]
[1728872070331,0.04010517,62691.0,62690.0,0.31917479]
[1728872070560,0.04310517,62691.0,62690.0,0.31917479]
[1728872071488,0.04310517,62691.0,62690.0,0.31417479]
[1728872071702,0.04010517,62691.0,62690.0,0.31417479]
[1728872072138,0.04110517,62691.0,62690.0,0.31417479]
[1728872072506,0.04110517,62691.0,62690.0,0.31517479]
[1728872076561,0.04110517,62691.0,62690.0,0.39737479]
[1728872076991,0.01731581,62691.0,62690.0,0.39737479]
[1728872077428,0.01731581,62691.0,62690.0,0.46920313]
[1728872078459,0.01731581,62691.0,62690.0,0.39737479]
[1728872079094,0.01731581,62691.0,62690.0,0.83113118]
[1728872079296,0.01731581,62691.0,62690.0,0.83613118]
[1728872079798,0.01731574,62691.0,62690.0,0.83613118]
[1728872080043,0.01631574,62691.0,62690.0,0.74036005]
[1728872080267,0.00144746,62691.0,62690.0,0.74036005]
[1728872080689,0.00144746,62691.0,62690.0,0.8361106]
[1728872080903,0.00144746,62691.0,62690.0,0.74036005]
[1728872081112,0.00144746,62691.0,62690.0,0.73936005]
[1728872081329,0.00144746,62691.0,62690.0,0.83510198]
[1728872081542,0.00244746,62691.0,62690.0,0.84310198]
[1728872081746,0.00244746,62691.0,62690.0,0.84810198]
[1728872081995,0.00244746,62691.0,62690.0,0.8481024]
[1728872082200,0.00144746,62691.0,62690.0,0.8401024]
[1728872082405,0.00144746,62691.0,62690.0,0.8351024]
[1728872082614,0.00244746,62691.0,62690.0,0.8421024]
[1728872082817,0.00244746,62691.0,62690.0,0.8411024]
[1728872083022,0.01730875,62691.0,62690.0,0.8411024]
[1728872083269,0.00344746,62691.0,62690.0,0.8491024]
[1728872083469,0.00244746,62691.0,62690.0,0.74736005]
[1728872083675,0.00244746,62691.0,62690.0,0.75236005]
[1728872084106,0.00244746,62691.0,62690.0,0.8431024]
[1728872084316,0.01730829,62691.0,62690.0,0.75236005]
[1728872084523,0.00144746,62691.0,62690.0,0.74436005]
[1728872084723,0.00244746,62691.0,62690.0,0.75136005]
[1728872084943,0.01730796,62691.0,62690.0,0.81815266]
[1728872085370,0.01630796,62691.0,62690.0,0.73936005]
[1728872085576,0.01730796,62691.0,62690.0,0.74536005]
[1728872085783,0.01830796,62691.0,62690.0,0.75336005]
[1728872086008,0.01830796,62691.0,62690.0,0.66392638]
[1728872086215,0.01830796,62691.0,62690.0,0.65892638]
[1728872086427,0.01830796,62691.0,62690.0,0.65892403]
[1728872086642,0.01630796,62691.0,62690.0,0.64492403]
[1728872087095,0.01630796,62691.0,62690.0,0.47316278]
[1728872087964,0.01730842,62691.0,62690.0,0.48016278]
[1728872088175,0.01730842,62691.0,62690.0,0.39637479]
[1728872088390,0.01730842,62691.0,62690.0,0.46816278]
[1728872088600,0.01830842,62691.0,62690.0,0.46916278]
[1728872089492,0.01830842,62691.0,62690.0,0.39737479]
[1728872092848,0.01830842,62691.0,62690.0,0.46915432]
[1728872093054,0.01830842,62691.0,62690.0,0.64578649]
[1728872093280,0.01830842,62691.0,62690.0,0.46915432]
[1728872094294,0.01830842,62691.0,62690.0,0.39737479]
[1728872094956,0.01830842,62691.0,62690.0,0.44522368]
[1728872095098,0.01830842,62691.0,62690.0,0.39737479]
[1728872095502,0.01830842,62691.0,62690.0,0.44522436]
[1728872096485,0.01830842,62691.0,62690.0,0.39737479]
[1728872096695,0.01830842,62691.0,62690.0,0.36302547]
[1728872097360,0.04210679,62691.0,62690.0,0.36302547]
[1728872098192,0.01830842,62691.0,62690.0,0.36302547]
[1728872098368,0.04210686,62691.0,62690.0,0.31517479]
[1728872100258,0.04210686,62691.0,62690.0,0.36302547]
[1728872100504,0.04210686,62691.0,62690.0,0.31517479]
[1728872102696,0.20161886,62691.0,62690.0,0.04266581]
[1728872102927,0.41107531,62691.0,62690.0,0.01067581]
[1728872103167,0.38231886,62691.0,62690.0,0.001819]
[1728872103420,0.38231886,62691.0,62690.0,0.01066437]
[1728872103681,0.38131886,62691.0,62690.0,0.01066437]
[1728872103950,0.54854287,62691.0,62690.0,0.01166437]
[1728872104258,0.55054287,62691.0,62690.0,0.002819]
[1728872104458,0.54854287,62691.0,62690.0,0.002819]
[1728872104703,0.54154287,62691.0,62690.0,0.000819]
[1728872105201,0.55454287,62691.0,62690.0,0.001819]
[1728872105453,0.54154287,62691.0,62690.0,0.000819]
[1728872105683,0.54954287,62691.0,62690.0,0.001819]
[1728872105897,0.57453569,62691.0,62690.0,0.001819]
[1728872107122,0.58853569,62691.0,62690.0,0.002819]
[1728872108881,0.60335896,62691.0,62690.0,0.002819]
[1728872109602,0.60335444,62691.0,62690.0,0.002819]
[1728872110080,0.58853569,62691.0,62690.0,0.002819]
[1728872112462,0.56354287,62691.0,62690.0,0.002819]
[1728872113315,0.52488347,62691.0,62690.0,0.002819]
[1728872113522,0.56339592,62691.0,62690.0,0.002819]
[1728872115016,0.57820962,62691.0,62690.0,0.002819]
[1728872115434,0.56339592,62691.0,62690.0,0.002819]
[1728872115647,0.58838903,62691.0,62690.0,0.002819]
[1728872116104,0.59038903,62691.0,62690.0,0.002819]
[1728872116592,0.59039274,62691.0,62690.0,0.002819]
[1728872117051,0.58839274,62691.0,62690.0,0.002819]
[1728872121206,0.54987658,62691.0,62690.0,0.002819]
[1728872121511,0.58838165,62691.0,62690.0,0.002819]
[1728872122442,0.56338854,62691.0,62690.0,0.002819]
[1728872124982,0.56319596,62691.0,62690.0,0.002819]
[1728872125406,0.54919596,62691.0,62690.0,0.001819]
[1728872125637,0.58018887,62691.0,62690.0,0.001819]
[1728872125871,0.58818887,62691.0,62690.0,0.002819]
[1728872126096,0.57418887,62691.0,62690.0,0.001819]
[1728872126542,0.58818887,62691.0,62690.0,0.002819]
[1728872128979,0.5496838,62691.0,62690.0,0.002819]
[1728872129185,0.58826461,62691.0,62690.0,0.002819]
[1728872131301,0.0868286,62691.0,62690.0,0.002819]
[1728872131776,0.26119802,62691.0,62690.0,0.01172331]
[1728872131995,0.26119802,62691.0,62690.0,0.002819]
[1728872131996,0.2463406,62691.0,62690.0,0.002819]
[1728872132232,0.2463406,62691.0,62690.0,0.01172331]
[1728872134186,0.2463406,62691.0,62690.0,0.002819]
[1728872135245,0.48185998,62691.0,62690.0,0.002819]
[1728872135504,0.4778717,62691.0,62690.0,0.002819]
[1728872135977,0.47794045,62691.0,62690.0,0.002819]
[1728872138096,0.22141644,62691.0,62690.0,0.002819]
[1728872138318,0.24640769,62691.0,62690.0,0.002819]
[1728872138565,0.24640769,62691.0,62690.0,0.01171718]
[1728872139614,0.22262087,62691.0,62690.0,0.01171718]
[1728872139831,0.24640125,62691.0,62690.0,0.01171718]
[1728872141549,0.50271353,62691.0,62690.0,0.01171718]
[1728872141761,0.50271353,62691.0,62690.0,0.002819]
[1728872141762,0.49872526,62691.0,62690.0,0.002819]
[1728872142647,0.47373401,62691.0,62690.0,0.002819]
[1728872144446,0.68653549,62691.0,62690.0,0.002819]
[1728872144668,0.69134299,62691.0,62690.0,0.002819]
[1728872144898,0.0068075,62690.0,62687.0,0.000819]
[1728872145104,0.15952,62688.0,62687.0,0.000819]
[1728872145322,0.36337597,62688.0,62687.0,0.000819]
[1728872145536,0.38438032,62688.0,62687.0,0.000819]
[1728872145966,0.38438032,62688.0,62687.0,0.001819]
[1728872146429,0.38438032,62688.0,62687.0,0.000819]
[1728872146430,0.6019893,62688.0,62687.0,0.000819]
[1728872146649,1.05846049,62688.0,62687.0,0.001819]
[1728872146869,1.13785612,62688.0,62687.0,0.001819]
[1728872147107,1.08145085,62688.0,62687.0,0.001819]
[1728872147528,1.07445085,62688.0,62687.0,0.000819]
[1728872148175,1.32445085,62688.0,62687.0,0.000819]
[1728872148655,1.32445085,62688.0,62682.0,0.000819]
[1728872148656,0.2893395,62683.0,62682.0,0.000819]
[1728872148889,0.90451304,62683.0,62682.0,0.000819]
[1728872149098,0.78169847,62683.0,62682.0,0.000819]
[1728872149320,0.90049222,62683.0,62682.0,0.000819]
[1728872149787,0.95531685,62683.0,62682.0,0.000819]
[1728872150028,1.19350352,62683.0,62682.0,0.001819]
[1728872150220,1.44350352,62683.0,62682.0,0.001819]
[1728872150643,1.4197044,62683.0,62682.0,0.001819]
[1728872150861,1.44343938,62683.0,62682.0,0.001819]
[1728872151077,1.44343957,62683.0,62682.0,0.001819]
[1728872151293,1.58593446,62683.0,62682.0,0.001819]
[1728872151499,1.44343957,62683.0,62682.0,0.001819]
[1728872153031,1.94343957,62683.0,62682.0,0.001819]
[1728872153709,1.77582116,62683.0,62682.0,0.001819]
[1728872154142,1.77577887,62683.0,62682.0,0.001819]
[1728872155406,1.89439382,62683.0,62682.0,0.001819]
[1728872155633,1.91939415,62683.0,62682.0,0.001819]
[1728872156763,1.8007792,62683.0,62682.0,0.001819]
[1728872157266,1.85713354,62683.0,62682.0,0.001819]
[1728872157528,1.89563855,62683.0,62682.0,0.001819]
[1728872157782,1.91937192,62683.0,62682.0,0.001819]
[1728872158011,2.08699033,62683.0,62682.0,0.001819]
[1728872158242,1.96837227,62683.0,62682.0,0.001819]
[1728872160082,0.0048075,62672.0,62665.0,0.28684856]
[1728872160345,0.159576,62666.0,62665.0,0.28684856]
[1728872160588,0.159576,62666.0,62665.0,0.049125]
[1728872160589,0.35930191,62666.0,62665.0,0.049125]
[1728872160818,0.159583,62663.0,62662.0,0.000819]
[1728872161058,0.36329908,62663.0,62662.0,0.000819]
[1728872161339,0.35930891,62663.0,62662.0,0.000819]
[1728872161617,0.35930891,62663.0,62662.0,0.080219]
[1728872161853,0.35930422,62663.0,62662.0,0.080219]
[1728872162073,0.36730422,62663.0,62662.0,0.080219]
[1728872162305,0.86730422,62663.0,62662.0,0.080219]
[1728872162864,0.54649721,62663.0,62662.0,0.080219]
[1728872163099,0.55249721,62663.0,62662.0,0.081219]
[1728872164413,0.55250533,62663.0,62662.0,0.081219]
[1728872165714,0.57750774,62663.0,62662.0,0.240805]
[1728872165930,0.57750774,62663.0,62662.0,0.081219]
[1728872166820,0.57750774,62663.0,62662.0,0.240805]
[1728872167495,0.55381215,62663.0,62662.0,0.3312975]
[1728872168144,0.55382075,62663.0,62662.0,0.3312975]
[1728872168354,0.53982075,62663.0,62662.0,0.3302975]
[1728872168564,0.53982075,62663.0,62662.0,0.3312975]
[1728872168798,0.55382075,62663.0,62662.0,0.3312975]
[1728872169006,0.04782075,62663.0,62662.0,0.3302975]
[1728872169241,0.04782075,62663.0,62662.0,0.3332975]
[1728872169959,0.03982075,62663.0,62662.0,0.34934291]
[1728872170172,0.03982075,62663.0,62662.0,0.34634291]
[1728872170388,0.04182075,62663.0,62662.0,0.34634291]
[1728872171232,0.06556267,62663.0,62662.0,0.35536904]
[1728872171443,0.06356267,62663.0,62662.0,0.35736904]
[1728872171664,0.02600241,62663.0,62662.0,0.35736904]
[1728872171876,0.06458604,62663.0,62662.0,0.47022287]
[1728872172094,0.06458667,62663.0,62662.0,0.47022287]
[1728872172620,0.06458667,62663.0,62662.0,0.45417746]
[1728872172813,0.0158401,62663.0,62662.0,0.61340147]
[1728872173041,0.23772356,62674.0,62673.0,0.3383505]
[1728872173255,0.2525804,62674.0,62673.0,0.59604816]
[1728872173467,0.2525804,62674.0,62673.0,0.60504753]
[1728872173723,0.55675356,62690.0,62681.0,0.159537]
[1728872173946,0.55675356,62690.0,62681.0,0.24996005]
[1728872173947,0.27634358,62682.0,62681.0,0.24996005]
[1728872174167,0.27634358,62682.0,62681.0,0.25894447]
[1728872174384,0.03862002,62682.0,62681.0,0.25894447]
[1728872174599,0.03862002,62682.0,62681.0,0.41848147]
[1728872174826,0.04025802,62682.0,62681.0,0.41848147]
[1728872175041,0.04325802,62682.0,62681.0,0.41848147]